bitfinex-derivatives/quotes_ETHF0:USTF0_20240930
["timestamp","ask_amount","ask_price","bid_price","bid_amount"]
[1727729197473,0.38243,2615.5,2615.4,3.2078]
[1727729197675,0.95603,2615.7,2615.4,3.2078]
[1727729197878,0.3994,2615.6,2615.4,3.59023]
[1727729198081,0.3994,2615.6,2615.4,3.2078]
[1727729198279,0.38243,2615.5,2615.4,3.2078]
[1727729198590,0.75543,2615.5,2615.4,3.59024]
[1727729199083,0.75543,2615.5,2615.4,3.2078]
[1727729199673,0.75543,2615.5,2615.4,3.59024]
[1727729200076,0.75543,2615.5,2615.4,3.2078]
[1727729200382,0.75543,2615.5,2615.4,3.59024]
[1727729200570,0.75543,2615.5,2615.4,3.2078]
[1727729201683,0.373,2615.5,2615.4,3.2078]
[1727729201871,0.75543,2615.5,2615.4,3.2078]
[1727729202477,0.75543,2615.5,2615.4,3.59024]
[1727729203173,0.373,2615.5,2615.4,3.2078]
[1727729203381,0.75543,2615.5,2615.4,3.59024]
[1727729203572,0.75543,2615.5,2615.4,3.2078]
[1727729203879,0.75543,2615.5,2615.4,3.59024]
[1727729205180,0.373,2615.5,2615.4,3.59024]
[1727729206780,0.78182,2615.6,2615.5,0.38243]
[1727729207176,4.60502,2615.6,2615.5,0.38243]
[1727729207882,0.3824,2615.7,2615.6,0.38241]
[1727729208384,4.2056,2615.7,2615.6,0.38241]
[1727729209681,4.20561,2615.7,2615.5,0.75903]
[1727729209887,0.3824,2615.7,2615.5,0.75903]
[1727729212274,4.55118,2615.8,2615.5,0.3766]
[1727729212786,0.38241,2615.7,2615.5,0.75903]
[1727729213476,0.38241,2615.6,2615.5,0.75903]
[1727729213676,1.34338,2615.8,2615.5,0.75903]
[1727729213677,4.55118,2615.8,2615.5,0.75903]
[1727729213877,0.38241,2615.6,2615.5,0.3766]
[1727729214173,0.38241,2615.6,2615.5,0.75903]
[1727729215877,0.38241,2615.7,2615.5,0.75903]
[1727729216282,0.38241,2615.6,2615.5,0.75903]
[1727729217287,0.38241,2615.6,2615.5,0.3766]
[1727729220692,12.01927,2615.6,2615.2,0.3834]
[1727729220890,12.01927,2615.6,2614.9,0.7341]
[1727729220891,0.3825,2615.0,2614.9,0.7341]
[1727729221080,0.38253,2614.8,2614.6,3.5734]
[1727729221279,0.7898,2614.9,2614.6,4.8134]
[1727729221481,0.7898,2614.9,2614.6,5.19595]
[1727729221684,0.7898,2614.9,2614.6,4.8134]
[1727729221879,5.2027,2615.1,2614.8,0.38253]
[1727729222086,0.3825,2615.0,2614.9,0.3818]
[1727729222287,5.2027,2615.1,2614.9,0.3818]
[1727729222489,9.0267,2615.1,2614.9,0.3818]
[1727729222690,0.3825,2615.0,2614.9,0.3818]
[1727729223092,4.2065,2615.0,2614.9,0.3818]
[1727729223391,0.3825,2615.0,2614.9,0.3818]
[1727729223897,4.2065,2615.0,2614.9,0.3818]
[1727729224094,3.2078,2615.1,2614.9,0.3818]
[1727729224285,3.2078,2615.1,2615.0,2.69]
[1727729224482,3.2078,2615.1,2615.0,3.4654]
[1727729225398,3.2078,2615.1,2615.0,3.0829]
[1727729228199,3.2078,2615.1,2615.0,3.4654]
[1727729228495,0.38247,2615.3,2615.0,3.4654]
[1727729228702,0.7675,2615.5,2615.1,0.3984]
[1727729228703,0.3973,2615.5,2615.1,0.3984]
[1727729228895,0.38246,2615.3,2615.1,0.78088]
[1727729229303,1.35338,2615.5,2615.1,0.78088]
[1727729229304,0.38245,2615.4,2615.1,0.78088]
[1727729229787,0.38246,2615.3,2615.1,0.78088]
[1727729233796,1.35338,2615.5,2615.1,0.3984]
[1727729234101,0.38247,2615.2,2615.1,0.3984]
[1727729235003,0.38247,2615.2,2615.1,0.78089]
[1727729235205,0.38246,2615.3,2615.1,0.78089]
[1727729235907,0.3973,2615.5,2615.1,0.3984]
[1727729236296,0.38247,2615.2,2615.1,0.3984]
[1727729236497,0.3825,2615.0,2614.9,0.3818]
[1727729236697,6.85396,2615.3,2614.6,1.46814538]
[1727729236698,1.1705,2615.1,2614.6,1.38497683]
[1727729236900,0.38252,2614.9,2614.8,0.3811]
[1727729242406,0.38252,2614.9,2614.8,0.76363]
[1727729244117,0.38252,2614.9,2614.8,0.3811]
[1727729245712,0.38252,2614.9,2614.8,0.76363]
[1727729248805,0.38252,2614.9,2614.8,0.3811]
[1727729249007,0.38252,2614.9,2614.8,0.76363]
[1727729249812,0.38252,2614.9,2614.8,0.3811]
[1727729250019,0.38252,2614.9,2614.8,0.76363]
[1727729250516,8.72383,2616.0,2614.8,8.6529]
[1727729250517,1.24,2615.4,2614.8,8.6529]
[1727729250711,0.95615,2615.3,2615.0,1.24]
[1727729250911,0.38248,2615.2,2615.0,1.62249]
[1727729251413,2.4121,2615.4,2615.0,1.24]
[1727729251613,0.38247,2615.2,2615.1,0.38249]
[1727729252519,0.38247,2615.2,2615.0,0.3825]
[1727729254718,1.24,2615.3,2615.0,0.3825]
[1727729254918,0.38247,2615.2,2615.0,0.3825]
[1727729255713,1.24,2615.3,2614.9,0.99227683]
[1727729255918,0.38248,2615.2,2615.0,0.3825]
[1727729256814,1.24,2615.3,2614.9,0.99227683]
[1727729257010,1.24,2615.3,2614.9,0.38251]
[1727729257011,0.3825,2615.1,2614.9,0.38251]
[1727729258521,2.19615,2615.3,2614.8,5.82117683]
[1727729258723,2.19615,2615.3,2615.0,0.3825]
[1727729258724,0.38248,2615.2,2615.0,0.3825]
[1727729259319,0.38248,2615.2,2614.8,5.82117683]
[1727729259524,0.38248,2615.2,2615.0,0.38249]
[1727729259720,0.38248,2615.2,2615.1,0.3835]
[1727729260024,0.38254,2614.7,2614.6,0.99227683]
[1727729260219,0.38256,2614.6,2614.5,0.99227683]
[1727729260417,0.38257,2614.5,2614.4,0.778]
[1727729260619,0.38257,2614.5,2614.0,1.95752718]
[1727729260620,1.6063,2614.5,2614.0,0.99227683]
[1727729260822,1.6063,2614.5,2613.5,0.519]
[1727729260823,0.95662,2614.0,2613.5,1.08227683]
[1727729261024,0.95662,2614.0,2613.3,1.95752718]
[1727729261025,1.24,2613.6,2613.3,4.20007683]
[1727729261220,0.3663,2613.9,2613.1,0.99227683]
[1727729261221,1.24,2613.4,2613.1,0.99227683]
[1727729261422,3.2078,2613.8,2612.6,0.09]
[1727729261423,3.2078,2613.2,2612.6,0.09]
[1727729261625,1.24,2613.3,2612.2,0.99227683]
[1727729261626,2.69,2612.8,2612.2,0.99227683]
[1727729262330,0.38277,2613.2,2612.6,0.38285]
[1727729262535,3.59055,2613.3,2612.7,0.38283]
[1727729262726,3.2078,2613.3,2612.7,3.2078]
[1727729262936,3.2078,2613.3,2612.8,3.07282]
[1727729263827,3.2078,2613.3,2613.0,3.07278]
[1727729264131,3.2078,2613.6,2613.1,0.7852]
[1727729264323,3.2078,2613.6,2613.2,2.69]
[1727729264523,3.2078,2613.6,2613.3,0.38274]
[1727729264724,3.2078,2613.6,2613.4,0.38273]
[1727729265130,3.2078,2613.6,2613.2,2.69]
[1727729265332,3.2078,2613.6,2613.3,0.38275]
[1727729265535,3.2078,2613.6,2613.3,0.38274]
[1727729266430,3.2078,2613.6,2613.2,2.69]
[1727729266631,3.2078,2613.6,2613.4,0.38272]
[1727729267238,3.2078,2613.9,2613.4,6.5164]
[1727729267434,3.2078,2613.9,2613.7,3.07268]
[1727729267735,3.2078,2613.9,2613.8,0.3826]
[1727729268037,3.2078,2613.9,2613.8,0.76528]
[1727729268534,3.2078,2613.9,2613.8,0.3826]
[1727729269332,3.2078,2613.9,2613.8,0.76528]
[1727729269536,3.2078,2613.9,2613.8,0.3826]
[1727729270634,3.2078,2613.9,2613.8,0.76528]
[1727729271136,3.2078,2614.3,2613.8,0.3826]
[1727729271329,0.38262,2614.2,2613.8,1.14317]
[1727729272538,3.2078,2614.3,2613.8,0.7605]
[1727729272731,0.38264,2614.1,2613.8,0.7605]
[1727729273134,0.38264,2614.1,2613.8,1.14317]
[1727729274044,5.8978,2614.3,2613.8,0.7605]
[1727729274337,0.38262,2614.2,2613.9,0.38266]
[1727729274733,5.8978,2614.3,2613.8,0.7605]
[1727729274734,3.2078,2614.3,2613.8,0.7605]
[1727729274936,3.2078,2614.3,2613.9,0.38265]
[1727729274937,0.38262,2614.2,2613.9,0.38265]
[1727729275345,3.59041,2614.3,2613.9,0.38265]
[1727729275841,3.59041,2614.3,2614.0,0.38265]
[1727729276253,3.59041,2614.3,2613.9,0.38265]
[1727729276437,3.2078,2614.3,2614.1,0.38263]
[1727729276743,3.59041,2614.3,2614.0,0.38264]
[1727729277335,3.59041,2614.3,2613.8,0.7605]
[1727729277645,3.59041,2614.3,2614.0,0.38264]
[1727729278339,3.2078,2614.3,2614.0,0.38264]
[1727729278538,0.38262,2614.2,2614.0,0.38264]
[1727729278745,0.38262,2614.2,2614.0,0.38265]
[1727729280338,3.2078,2614.3,2614.1,0.38263]
[1727729280743,0.38262,2614.2,2614.1,0.38263]
[1727729281040,0.95649,2614.4,2614.1,0.38263]
[1727729281041,3.2078,2614.6,2614.1,2.69]
[1727729281240,0.3826,2614.4,2614.2,0.77631]
[1727729281443,4.16422,2614.6,2614.3,0.38259]
[1727729281444,0.38258,2614.5,2614.3,0.38259]
[1727729281654,0.38258,2614.5,2614.4,0.3734]
[1727729283348,3.2078,2614.6,2614.4,0.3734]
[1727729283550,3.59036,2614.6,2614.4,0.75598]
[1727729283849,0.38257,2614.5,2614.4,0.75599]
[1727729284048,3.2078,2614.6,2614.4,0.75599]
[1727729284250,3.59037,2614.6,2614.4,0.75599]
[1727729285050,3.2078,2614.6,2614.5,0.38257]
[1727729285248,0.38252,2614.9,2614.4,3.5812]
[1727729285553,0.38253,2614.9,2614.7,0.38254]
[1727729285952,3.2078,2615.1,2614.4,3.5812]
[1727729286145,3.2078,2615.1,2614.6,2.69]
[1727729286351,0.3825,2615.0,2614.8,0.38252]
[1727729286561,0.3825,2615.0,2614.7,0.4012]
[1727729286562,3.59029,2615.1,2614.9,0.38251]
[1727729287062,3.59029,2615.1,2615.0,0.3999]
[1727729287557,3.59029,2615.1,2615.0,0.7824]
[1727729287558,3.2078,2615.1,2615.0,0.7824]
[1727729287740,3.59029,2615.1,2615.0,0.3999]
[1727729290549,3.2078,2615.1,2615.0,0.3999]
[1727729290743,3.59029,2615.1,2615.0,0.3999]
[1727729291053,3.2078,2615.1,2615.0,0.3999]
[1727729291651,3.2078,2615.1,2615.0,0.7824]
[1727729293357,3.2078,2615.1,2615.0,0.3999]
[1727729293358,3.59029,2615.1,2615.0,0.3999]
[1727729294254,3.59029,2615.1,2615.0,0.7824]
[1727729296652,3.2078,2615.1,2615.0,0.7824]
[1727729297555,3.59029,2615.1,2615.0,0.7824]
[1727729298757,3.2078,2615.1,2615.0,0.7824]
[1727729299058,3.59023,2615.5,2615.4,0.38244]
[1727729299269,0.38243,2615.5,2615.4,0.38244]
[1727729299455,0.3824,2615.7,2615.6,0.3824]
[1727729299757,0.38243,2615.6,2615.5,0.38242]
[1727729302762,4.16379,2615.8,2615.3,0.95615]
[1727729303063,0.3824,2615.7,2615.6,0.3824]
[1727729303467,4.16379,2615.8,2615.2,7.62597]
[1727729303654,0.38241,2615.7,2615.6,0.3824]
[1727729305668,0.3824,2615.7,2615.6,0.38241]
[1727729305959,3.2078,2615.8,2615.2,7.62597]
[1727729306166,0.3824,2615.7,2615.6,0.38241]
[1727729306665,3.8232,2615.7,2615.2,0.772]
[1727729306862,3.2078,2615.5,2614.9,3.2078]
[1727729307064,0.95611,2615.4,2615.0,0.7823]
[1727729307268,0.38245,2615.4,2615.3,0.38245]
[1727729307468,3.2078,2615.5,2615.4,0.38244]
[1727729307469,3.59023,2615.5,2615.4,0.38244]
[1727729307952,7.031,2615.5,2615.4,0.38244]
[1727729308156,7.41343,2615.5,2615.3,0.38246]
[1727729308364,7.41343,2615.5,2615.4,0.38244]
[1727729308365,3.2078,2615.5,2615.4,0.38244]
[1727729308556,3.59023,2615.5,2615.4,0.38244]
[1727729309061,3.2078,2615.5,2615.4,0.38244]
[1727729309257,3.59023,2615.5,2615.4,0.38244]
[1727729309663,3.2078,2615.5,2615.4,0.38244]
[1727729310159,3.2078,2615.5,2615.4,0.75024]
[1727729310555,3.59023,2615.5,2615.4,0.3678]
[1727729311164,3.2078,2615.5,2615.4,0.3678]
[1727729311564,3.2078,2615.5,2615.4,0.75024]
[1727729312175,3.59023,2615.5,2615.4,0.3678]
[1727729312364,3.59023,2615.5,2615.4,0.75024]
[1727729312666,3.2078,2615.5,2615.4,0.75024]
[1727729313165,3.59023,2615.5,2615.4,0.75024]
[1727729313468,3.2078,2615.5,2615.4,0.75024]
[1727729313767,3.59023,2615.5,2615.4,0.75024]
[1727729313965,3.59023,2615.5,2615.4,1.15204]
[1727729314168,3.59023,2615.5,2615.4,0.7696]
[1727729315667,3.59023,2615.5,2615.4,1.15204]
[1727729315969,3.2078,2615.5,2615.4,1.15204]
[1727729316170,3.59023,2615.5,2615.4,1.15204]
[1727729317263,0.38243,2615.5,2615.4,0.7696]
[1727729317463,0.38243,2615.5,2615.4,1.15204]
[1727729318466,0.38243,2615.5,2615.4,0.7696]
[1727729318771,0.38243,2615.5,2615.4,1.15204]
[1727729319169,0.38243,2615.5,2615.4,0.7696]
[1727729319568,0.38243,2615.5,2615.4,1.15204]
[1727729319765,0.38243,2615.5,2615.4,0.7696]
[1727729320863,4.16384,2615.6,2615.0,3.5878]
[1727729320864,4.4478,2615.6,2615.0,3.5878]
[1727729321069,0.38247,2615.2,2615.1,0.3902]
[1727729322274,3.824,2615.2,2615.0,0.3732]
[1727729322470,0.38249,2615.1,2615.0,0.3732]
[1727729322671,0.38249,2615.1,2615.0,0.7557]
[1727729323677,0.38249,2615.1,2615.0,0.75569]
[1727729323984,0.38247,2615.2,2615.1,0.38247]
[1727729324281,0.38249,2615.1,2615.0,1.99569]
[1727729324479,0.38248,2615.2,2615.1,0.38248]
[1727729325377,3.59027,2615.3,2615.1,0.38248]
[1727729325882,0.38247,2615.2,2615.1,0.38248]
[1727729326179,4.16386,2615.6,2615.1,1.24]
[1727729326578,0.38243,2615.5,2615.4,0.38243]
[1727729326884,3.2078,2615.6,2615.1,1.24]
[1727729327085,0.38243,2615.5,2615.3,0.38245]
[1727729327682,3.59022,2615.6,2615.4,0.38244]
[1727729327881,3.2078,2615.6,2615.1,1.24]
[1727729328081,0.38243,2615.5,2615.3,0.38246]
[1727729328478,0.38243,2615.5,2615.4,0.38244]
[1727729328679,0.38243,2615.5,2615.3,0.38244]
[1727729328883,0.38243,2615.5,2615.4,0.3793]
[1727729330083,3.59023,2615.6,2615.4,0.76174]
[1727729330276,0.38243,2615.5,2615.4,0.76174]
[1727729331687,0.38243,2615.5,2615.4,0.3793]
[1727729332186,0.38243,2615.5,2615.4,0.7621]
[1727729333581,1.62243,2615.5,2615.4,0.3793]
[1727729333883,0.38246,2615.3,2615.2,0.3828]
[1727729334090,3.59026,2615.3,2615.2,0.3828]
[1727729334486,0.38247,2615.2,2615.1,0.397]
[1727729337881,3.59027,2615.2,2615.1,0.397]
[1727729338282,3.2078,2615.2,2615.1,0.397]
[1727729338479,3.59027,2615.2,2615.1,0.397]
[1727729340087,0.38247,2615.2,2615.1,0.397]
[1727729340287,3.59027,2615.2,2615.1,0.397]
[1727729341790,3.59027,2615.2,2615.1,0.77949]
[1727729342088,3.59027,2615.2,2615.1,0.397]
[1727729342991,3.2078,2615.2,2615.1,0.77949]
[1727729343999,3.2078,2615.6,2615.1,5.21327683]
[1727729344190,3.2078,2615.6,2615.5,1.62243]
[1727729344391,3.2078,2615.6,2615.5,1.24]
[1727729344590,3.2078,2615.6,2615.4,0.38243]
[1727729344791,3.2078,2615.6,2615.5,0.3656]
[1727729345897,3.59021,2615.6,2615.5,0.3656]
[1727729346197,3.2078,2615.6,2615.5,0.3656]
[1727729346991,3.59021,2615.6,2615.5,0.3656]
[1727729347292,3.2078,2615.6,2615.5,0.3656]
[1727729347897,3.59021,2615.6,2615.5,0.3656]
[1727729351989,0.38247,2615.3,2615.1,0.397]
[1727729352196,0.38247,2615.3,2615.1,0.7882]
[1727729352601,1.62245,2615.4,2615.1,1.17068]
[1727729353204,1.24,2615.4,2615.1,1.17068]
[1727729353503,1.62245,2615.4,2615.1,1.17068]
[1727729353699,4.6585,2615.6,2615.1,0.7882]
[1727729353997,4.6585,2615.6,2615.1,1.17067]
[1727729354214,1.62245,2615.4,2615.1,1.17067]
[1727729355093,1.24,2615.4,2615.1,0.7882]
[1727729355287,1.24,2615.4,2615.2,0.38247]
[1727729355701,5.61456,2615.6,2615.2,0.38247]
[1727729355898,0.38245,2615.4,2615.1,1.17068]
[1727729356098,4.6585,2615.6,2615.1,0.7882]
[1727729356306,0.38243,2615.5,2615.2,0.38246]
[1727729356801,4.6585,2615.6,2615.1,0.7882]
[1727729356998,0.38247,2615.2,2615.1,0.7882]
[1727729357300,1.24,2615.4,2615.1,0.7882]
[1727729357301,0.38246,2615.3,2615.1,0.7882]
[1727729358493,0.38245,2615.4,2615.1,1.17068]
[1727729361510,3.2078,2615.3,2615.1,1.17068]
[1727729361711,3.2078,2615.3,2615.1,0.7882]
[1727729362006,3.2078,2615.3,2615.2,0.38247]
[1727729362416,3.2078,2615.3,2615.1,1.17067]
[1727729362711,3.2078,2615.3,2615.1,0.7882]
[1727729362906,3.59026,2615.3,2615.1,1.17068]
[1727729363302,3.2078,2615.3,2615.2,0.38247]
[1727729363907,3.2078,2615.3,2615.1,0.7882]
[1727729364107,3.59027,2615.3,2615.1,1.17068]
[1727729364306,3.59027,2615.3,2615.1,2.16295683]
[1727729364906,3.59027,2615.3,2615.1,1.17067]
[1727729365215,3.59026,2615.3,2615.1,1.17068]
[1727729367510,3.59026,2615.3,2615.1,0.7882]
[1727729367816,3.59026,2615.3,2615.2,0.38247]
[1727729368009,3.59026,2615.3,2615.1,1.17068]
[1727729368205,3.2078,2615.3,2615.1,1.17068]
[1727729368415,3.59027,2615.3,2615.1,1.17068]
[1727729370010,3.2078,2615.3,2615.2,0.38247]
[1727729371721,3.59027,2615.3,2615.1,1.17068]
[1727729371911,3.59026,2615.3,2615.1,1.17067]
[1727729372110,3.2078,2615.3,2615.1,0.7882]
[1727729372312,3.2078,2615.3,2615.2,0.38247]
[1727729372810,3.2078,2615.3,2615.1,0.7882]
[1727729373019,3.59026,2615.3,2615.1,1.17068]
[1727729373319,3.59026,2615.3,2615.1,2.16295683]
[1727729373709,3.2078,2615.3,2615.1,1.78047683]
[1727729373909,3.2078,2615.3,2615.2,0.38247]
[1727729374312,3.59026,2615.3,2615.2,0.38247]
[1727729374721,3.2078,2615.3,2615.1,1.78047683]
[1727729375123,3.2078,2615.3,2615.2,0.38247]
[1727729375309,3.2078,2615.3,2615.2,1.37474683]
[1727729377013,3.59026,2615.3,2615.2,0.99227683]
[1727729377220,3.59026,2615.3,2615.1,1.78047683]
[1727729377522,3.59026,2615.3,2615.1,2.16295683]
[1727729377818,3.2078,2615.3,2615.1,1.78047683]
[1727729378019,3.2078,2615.3,2615.1,2.16295683]
[1727729378224,3.59026,2615.3,2615.1,2.16295683]
[1727729378620,3.2078,2615.3,2615.1,2.16295683]
[1727729378819,3.2078,2615.3,2615.2,0.99227683]
[1727729379020,3.2078,2615.3,2615.1,2.16295683]
[1727729379229,3.2078,2615.3,2615.1,1.78047683]
[1727729379521,3.2078,2615.3,2615.2,0.99227683]
[1727729380115,3.2078,2615.3,2615.1,1.17067]
[1727729380720,3.59026,2615.3,2615.1,1.17067]
[1727729381621,3.2078,2615.3,2615.1,1.17067]
[1727729381822,3.2078,2615.3,2615.2,0.38247]
[1727729386733,3.2078,2615.3,2615.1,2.16294683]
[1727729387119,3.59027,2615.3,2615.1,1.17068]
[1727729388226,3.59027,2615.3,2615.2,0.99227683]
[1727729390326,3.59027,2615.3,2615.2,2.5034838]
[1727729390628,7.41427,2615.3,2615.2,0.99227683]
[1727729390831,8.00517,2615.3,2615.2,0.99227683]
[1727729391924,9.24517,2615.3,2615.2,0.99227683]
[1727729392128,5.42117,2615.3,2615.2,0.99227683]
[1727729392327,5.42117,2615.3,2615.1,1.78047683]
[1727729392631,5.0387,2615.3,2615.1,2.16295683]
[1727729393626,5.42116,2615.3,2615.1,2.16295683]
[1727729393823,5.42116,2615.3,2615.1,1.78047683]
[1727729394026,5.42116,2615.3,2615.1,2.16295683]
[1727729394729,5.42116,2615.3,2615.1,1.78047683]
[1727729394929,5.42116,2615.3,2615.1,2.16295683]
[1727729395119,5.42116,2615.3,2615.1,1.78047683]
[1727729395521,5.42116,2615.3,2615.1,2.16295683]
[1727729396126,5.0387,2615.3,2615.1,1.78047683]
[1727729396327,5.42117,2615.3,2615.1,1.78047683]
[1727729396520,5.42117,2615.3,2615.1,2.16295683]
[1727729396724,5.0387,2615.3,2615.1,2.16295683]
[1727729397126,3.2078,2615.3,2615.1,1.78047683]
[1727729397424,3.2078,2615.3,2615.2,4.6020991]
[1727729397628,3.2078,2615.3,2615.2,3.13395372]
[1727729398537,3.2078,2615.3,2615.2,4.62219252]
[1727729399334,3.2078,2615.3,2615.2,3.1107088]
[1727729399532,3.2078,2615.3,2615.2,4.62197895]
[1727729401937,3.2078,2615.3,2615.2,3.13374015]
[1727729402239,3.2078,2615.3,2615.2,2.61461696]
[1727729402429,3.2078,2615.3,2615.2,2.23214696]
[1727729402628,3.2078,2615.3,2615.2,0.99214696]
[1727729402833,3.2078,2615.3,2615.2,0.38247]
[1727729404537,3.2078,2615.3,2615.1,3.02034696]
[1727729404746,3.2078,2615.3,2615.2,0.38247]
[1727729406338,3.2078,2615.3,2615.1,3.40281696]
[1727729406545,3.2078,2615.3,2615.2,0.38247]
[1727729407444,3.2078,2615.3,2615.2,1.37461696]
[1727729408540,0.38243,2615.5,2615.2,1.37461696]
[1727729408734,3.2078,2615.3,2615.2,1.37461696]
[1727729408935,3.2078,2615.3,2615.2,0.99214696]
[1727729409137,3.2078,2615.3,2615.2,1.37461696]
[1727729410336,3.2078,2615.3,2615.2,1.89658451]
[1727729412836,3.2078,2615.3,2615.2,1.8960607]
[1727729413036,0.38244,2615.4,2615.2,1.8960607]
[1727729413337,0.38244,2615.4,2615.3,3.00405985]
[1727729413643,3.2078,2615.4,2615.3,3.00405985]
[1727729414144,3.59024,2615.4,2615.3,1.5135907]
[1727729416751,3.59024,2615.4,2615.3,2.50718504]
[1727729416937,3.59024,2615.4,2615.3,1.5135907]
[1727729417249,3.59024,2615.4,2615.2,1.37605145]
[1727729417446,0.38244,2615.4,2615.2,0.99359145]
[1727729417639,0.38244,2615.4,2615.3,0.38246]
[1727729417943,3.59024,2615.4,2615.3,0.38246]
[1727729419834,3.59024,2615.4,2615.2,0.99359145]
[1727729420039,3.59024,2615.4,2615.3,0.38246]
[1727729422848,9.22711,2615.4,2615.1,0.99359145]
[1727729423038,9.22711,2615.4,2615.0,1.49046915]
[1727729423039,2.19618,2615.2,2614.8,0.402]
[1727729423238,0.38254,2614.7,2614.6,0.3657]
[1727729423444,0.38254,2614.7,2614.5,0.402]
[1727729423445,0.38256,2614.6,2614.5,0.402]
[1727729423748,3.2078,2614.6,2614.5,0.402]
[1727729424133,3.2078,2614.6,2614.5,0.8024]
[1727729425443,3.2078,2614.6,2614.5,1.79599145]
[1727729426144,3.2078,2614.6,2614.5,0.8024]
[1727729428136,3.59036,2614.6,2614.5,0.8024]
[1727729428334,3.2078,2614.6,2614.5,0.8024]
[1727729432043,4.83036,2614.6,2614.5,0.8024]
[1727729432247,4.4478,2614.6,2614.5,0.8024]
[1727729432550,3.2078,2614.6,2614.5,0.8024]
[1727729433747,3.59036,2614.6,2614.5,0.8024]
[1727729434349,3.2078,2614.6,2614.5,0.8024]
[1727729435248,3.59036,2614.6,2614.5,0.8024]
[1727729435444,3.2078,2614.6,2614.5,0.8024]
[1727729437044,1.62256,2614.7,2614.5,0.8024]
[1727729437547,3.2078,2614.6,2614.5,0.8024]
[1727729440144,3.59036,2614.6,2614.5,0.8024]
[1727729440545,3.2078,2614.6,2614.5,0.8024]
[1727729441047,1.62256,2614.7,2614.5,0.8024]
[1727729441249,3.5903,2615.0,2614.6,1.24]
[1727729441441,3.5903,2615.0,2614.5,3.03599145]
[1727729441442,0.38252,2614.9,2614.5,3.03599145]
[1727729441643,1.62256,2614.6,2614.5,0.402]
[1727729441841,1.62256,2614.6,2614.3,0.3657]
[1727729441842,0.38259,2614.4,2614.3,0.3657]
[1727729442038,4.83039,2614.4,2614.3,0.3657]
[1727729442538,4.83039,2614.4,2613.8,0.99359145]
[1727729442539,8.2726,2614.4,2613.8,0.99359145]
[1727729442751,4.4478,2614.1,2614.0,0.3904]
[1727729443048,4.83043,2614.1,2614.0,0.3904]
[1727729443249,4.4478,2614.1,2614.0,0.77305]
[1727729444144,4.83043,2614.1,2614.0,0.77305]
[1727729444338,4.83043,2614.1,2614.0,0.3904]
[1727729444539,4.4478,2614.1,2614.0,0.77305]
[1727729444754,4.83043,2614.1,2614.0,0.77305]
[1727729445254,8.65603,2614.1,2614.0,0.3904]
[1727729445553,0.38265,2614.0,2613.9,0.76046]
[1727729445850,0.38265,2614.0,2613.9,0.3778]
[1727729446558,0.38265,2614.0,2613.9,0.76046]
[1727729447247,0.38265,2614.0,2613.9,0.3778]
[1727729447648,4.4478,2614.1,2613.9,0.3778]
[1727729447848,4.4478,2614.1,2613.9,0.76045]
[1727729448049,4.83044,2614.1,2613.9,0.76045]
[1727729449251,4.83044,2614.1,2614.0,0.38265]
[1727729449252,3.2078,2614.1,2614.0,0.38265]
[1727729449450,0.3689,2614.3,2614.1,0.38262]
[1727729449451,1.24,2614.2,2614.1,0.38262]
[1727729455556,4.83039,2614.4,2614.3,0.3826]
[1727729456058,3.2078,2614.4,2614.3,0.3826]
[1727729456662,3.2078,2614.4,2614.3,5.8392]
[1727729456962,0.38254,2614.8,2614.6,0.38255]
[1727729456963,3.2078,2614.7,2614.6,0.38255]
[1727729458153,4.83035,2614.7,2614.5,0.78376]
[1727729458355,4.4478,2614.7,2614.6,0.38256]
[1727729459559,4.4478,2614.7,2614.5,0.4012]
[1727729459750,4.4478,2614.7,2614.6,0.38256]
[1727729459953,4.83035,2614.7,2614.5,0.78376]
[1727729460156,4.4478,2614.7,2614.6,0.38256]
[1727729461662,4.4478,2614.7,2614.5,0.4012]
[1727729461853,4.83035,2614.7,2614.6,0.38256]
[1727729462956,4.4478,2614.7,2614.6,0.38256]
[1727729463467,4.83034,2614.7,2614.6,0.38256]
[1727729463655,4.4478,2614.7,2614.6,0.38256]
[1727729465556,4.4478,2614.7,2614.5,0.4012]
[1727729465557,4.83035,2614.7,2614.5,0.78376]
[1727729466058,4.83035,2614.7,2614.6,0.38256]
[1727729466666,4.83035,2614.7,2614.5,0.4012]
[1727729466667,4.83035,2614.7,2614.5,0.78377]
[1727729467358,4.4478,2614.7,2614.5,0.4012]
[1727729467660,4.83034,2614.7,2614.6,0.3655]
[1727729468162,4.83034,2614.7,2614.6,0.74806]
[1727729468362,4.4478,2614.7,2614.6,0.74806]
[1727729470065,1.24,2614.7,2614.6,0.74806]
[1727729470254,4.4478,2614.7,2614.6,0.74806]
[1727729470454,4.4478,2614.7,2614.6,0.3655]
[1727729470652,4.83034,2614.7,2614.6,0.3655]
[1727729471066,4.4478,2614.7,2614.6,0.74806]
[1727729471967,4.4478,2614.7,2614.6,0.3655]
[1727729472268,4.4478,2614.7,2614.6,0.74806]
[1727729472567,4.4478,2614.7,2614.6,0.3655]
[1727729473066,4.4478,2614.7,2614.6,0.74806]
[1727729474067,4.83034,2614.7,2614.6,0.74806]
[1727729474364,4.4478,2614.7,2614.6,0.3655]
[1727729474564,4.4478,2614.7,2614.3,1.38539145]
[1727729474565,8.2726,2614.7,2614.3,1.38539145]
[1727729474764,8.2726,2614.7,2614.3,1.1775]
[1727729474765,1.24,2614.4,2614.3,1.1775]
[1727729475067,1.24,2614.4,2614.1,1.39889145]